bitfinex-derivatives/quotes_ETHF0:USTF0_20250411
["timestamp","ask_amount","ask_price","bid_price","bid_amount"]
[1744386691439,3.47346,1565.5,1565.4,3.40668]
[1744386691849,3.47346,1565.5,1565.4,2.1285]
[1744386692845,3.47346,1565.5,1565.4,3.40674]
[1744386693049,2.1953,1565.5,1565.4,3.40674]
[1744386693248,3.47346,1565.5,1565.4,3.40674]
[1744386694143,2.1953,1565.5,1565.4,3.40674]
[1744386694548,3.47346,1565.5,1565.4,3.40674]
[1744386694746,3.47346,1565.5,1565.4,2.1285]
[1744386695148,1.27824,1565.4,1565.3,0.00956693]
[1744386695345,3.50884,1565.4,1565.3,0.00956693]
[1744386695847,6.71664,1565.4,1565.3,0.00956693]
[1744386696151,4.48574,1565.8,1565.7,1.27799]
[1744386696353,1.27799,1565.7,1565.6,1.27804]
[1744386696553,6.71638,1565.8,1565.7,1.27799]
[1744386696754,6.71638,1565.8,1565.6,1.27801]
[1744386696755,1.27801,1565.7,1565.6,1.27801]
[1744386697051,1.27801,1565.7,1565.6,3.45521]
[1744386697452,2.3402,1565.7,1565.6,3.45527]
[1744386697752,11.98196868,1565.8,1565.7,1.27799]
[1744386698051,11.11436868,1565.8,1565.7,3.56239]
[1744386698252,7.49620868,1565.8,1565.7,3.56239]
[1744386699542,8.77411868,1565.8,1565.7,2.2844]
[1744386699747,8.77411868,1565.8,1565.7,3.56239]
[1744386700153,1.27802,1565.7,1565.6,1.27805]
[1744386700355,1.27802,1565.7,1565.6,3.53217]
[1744386700553,2.2104,1565.7,1565.6,3.53217]
[1744386700748,7.49620868,1565.8,1565.6,2.2541]
[1744386700951,7.49620868,1565.8,1565.7,3.53209]
[1744386701152,2.2104,1566.0,1565.9,1.27783]
[1744386701859,2.2104,1566.0,1565.9,3.53193]
[1744386702050,0.00956693,1566.1,1566.0,1.27775]
[1744386702358,1.28723693,1566.1,1566.0,2.2541]
[1744386702558,0.00956693,1566.1,1566.0,3.53185]
[1744386702860,2.21996693,1566.1,1566.0,3.53185]
[1744386703056,3.49763693,1566.1,1565.9,1.27778]
[1744386703357,2.21996693,1566.1,1566.0,1.27775]
[1744386704362,2.21996693,1566.1,1565.9,3.4819]
[1744386704656,3.49768693,1566.1,1565.9,3.48187]
[1744386704960,3.49768693,1566.1,1565.7,1.27795]
[1744386704961,1.27787,1565.9,1565.7,1.27795]
[1744386705463,2.3084,1565.8,1565.7,1.27795]
[1744386705662,3.58631,1565.8,1565.7,1.27795]
[1744386705855,1.27799,1565.7,1565.6,1.27801]
[1744386706057,3.58639,1565.7,1565.6,1.27801]
[1744386706563,1.27807,1565.6,1565.5,6.63114]
[1744386706757,3.52817,1565.6,1565.4,16.03541514]
[1744386706965,1.27816,1565.5,1565.4,14.75724514]
[1744386707164,3.52826,1565.5,1565.4,14.75724514]
[1744386707364,4.1115,1565.5,1565.4,16.03548514]
[1744386707658,4.1115,1565.5,1565.4,14.75724514]
[1744386707659,5.38966,1565.5,1565.4,14.75724514]
[1744386708158,7.25816,1565.5,1565.4,14.75724514]
[1744386708769,7.25816,1565.5,1565.4,16.03548514]
[1744386709665,7.25816,1565.5,1565.4,1.27824]
[1744386710066,1.27824,1565.4,1565.3,1.28784693]
[1744386710263,3.40264,1565.4,1565.3,1.28784693]
[1744386710568,2.1244,1565.4,1565.3,1.28784693]
[1744386710769,6.62106,1565.7,1565.6,1.27807]
[1744386711669,5.343,1565.7,1565.3,5.06135693]
[1744386711859,1.27812,1565.6,1565.5,1.27812]
[1744386712061,2.1244,1565.6,1565.5,1.27812]
[1744386712260,2.1244,1565.6,1565.3,1.28785693]
[1744386712261,5.3322,1565.6,1565.3,1.28785693]
[1744386712462,1.27824,1565.4,1565.3,1.28785693]
[1744386712668,2.0948,1565.5,1565.3,0.00956693]
[1744386712971,1.27824,1565.4,1565.3,1.28783693]
[1744386713371,3.373,1565.5,1565.4,1.27824]
[1744386713559,1.27824,1565.4,1565.3,1.28782693]
[1744386713763,3.37304,1565.4,1565.3,1.28782693]
[1744386714075,3.37304,1565.4,1565.3,0.00956693]
[1744386714370,6.58084,1565.4,1565.3,0.00956693]
[1744386714764,6.58084,1565.4,1565.3,1.28788693]
[1744386714960,6.58084,1565.4,1565.3,0.00956693]
[1744386715675,6.58084,1565.4,1565.3,1.28788693]
[1744386715881,4.48604,1565.4,1565.3,1.28788693]
[1744386716070,4.48604,1565.4,1565.3,3.38298693]
[1744386716270,3.2078,1565.4,1565.3,3.38298693]
[1744386716666,4.48604,1565.4,1565.3,3.38298693]
[1744386716862,2.1864,1565.4,1565.3,3.38298693]
[1744386717175,2.1864,1565.4,1565.3,6.59078693]
[1744386717478,3.2078,1565.5,1565.3,7.10466693]
[1744386717667,18.23340868,1565.7,1565.4,3.37327]
[1744386717975,1.27816,1565.5,1565.4,3.37327]
[1744386718272,2.1864,1565.6,1565.4,3.37327]
[1744386718273,2.1864,1565.6,1565.5,1.27816]
[1744386718581,2.1864,1565.6,1565.5,3.51386]
[1744386718875,3.46447,1565.6,1565.5,3.51386]
[1744386719271,3.46447,1565.6,1565.3,10.53256693]
[1744386719272,1.27816,1565.5,1565.4,1.27821]
[1744386719479,3.53696,1565.5,1565.4,1.27821]
[1744386720482,3.53696,1565.5,1565.4,1.27824]
[1744386720483,3.53702,1565.5,1565.4,1.27824]
[1744386720775,2.2588,1565.5,1565.4,1.27824]
[1744386720973,3.53696,1565.5,1565.4,3.51394]
[1744386721176,1.27824,1565.4,1565.3,5.35356693]
[1744386721367,3.46984,1565.4,1565.3,5.35356693]
[1744386721776,3.46984,1565.4,1565.3,6.63188693]
[1744386722178,2.1916,1565.4,1565.3,6.63188693]
[1744386722480,3.2078,1565.7,1565.6,1.27807]
[1744386722977,6.67744,1565.7,1565.6,1.27807]
[1744386723180,1.9302,1565.8,1565.7,1.27799]
[1744386723381,5.39971,1565.8,1565.7,1.27799]
[1744386723883,1.27813,1565.6,1565.5,1.2781]
[1744386724077,1.27824,1565.4,1565.3,0.00956693]
[1744386724378,4.48604,1565.4,1565.3,0.00956693]
[1744386724880,8.61524,1565.4,1565.3,0.00956693]
[1744386725380,8.61524,1565.4,1565.3,1.28788693]
[1744386725679,8.61524,1565.4,1565.3,0.00956693]
[1744386728078,18.96024,1565.4,1565.3,1e-08]
[1744386731373,13.96024,1565.4,1565.3,1e-08]
[1744386733270,13.96024,1565.4,1565.3,1.27832001]
[1744386733476,13.96024,1565.4,1565.3,1e-08]
[1744386734483,8.61524,1565.4,1565.3,1.27832001]
[1744386734670,8.61524,1565.4,1565.3,1e-08]
[1744386736279,13.96024,1565.4,1565.3,1e-08]
[1744386736779,13.96024,1565.4,1565.3,1.27832001]
[1744386737186,13.96024,1565.4,1565.3,1e-08]
[1744386738680,13.76024,1565.4,1565.3,1e-08]
[1744386742683,18.76024,1565.4,1565.3,1e-08]
[1744386742989,24.69224,1565.4,1565.3,1e-08]
[1744386743181,19.69224,1565.4,1565.3,1e-08]
[1744386745190,19.69224,1565.4,1565.3,1.27832001]
[1744386745388,19.69224,1565.4,1565.3,1e-08]
[1744386745787,13.76024,1565.4,1565.3,1.27832001]
[1744386745982,13.76024,1565.4,1565.3,1e-08]
[1744386747694,13.76024,1565.4,1565.3,1.27832001]
[1744386747890,13.76024,1565.4,1565.3,1e-08]
[1744386749792,13.76024,1565.4,1565.3,1.27832001]
[1744386750095,8.41524,1565.4,1565.3,1.27832001]
[1744386750390,11.98212868,1565.6,1565.3,1e-08]
[1744386750586,14.11252868,1565.6,1565.5,1.27816]
[1744386750992,10.70400868,1565.6,1565.5,1.27816]
[1744386751191,10.70400868,1565.6,1565.5,5.18526]
[1744386752197,11.98207868,1565.6,1565.5,5.18526]
[1744386752389,10.70400868,1565.6,1565.5,5.18526]
[1744386752589,7.49620868,1565.6,1565.5,10.18526]
[1744386753291,9.99057217,1565.7,1565.6,1.27807]
[1744386753588,12.43373749,1565.8,1565.6,12.08027]
[1744386753792,9.99057217,1566.0,1565.9,1.27783]
[1744386755396,9.99057217,1566.0,1565.9,6.27783]
[1744386755695,9.99057217,1566.0,1565.9,11.61283]
[1744386756290,12.44330442,1566.1,1565.9,11.61283]
[1744386756491,9.61867528,1566.1,1566.0,6.58195]
[1744386756890,9.61867528,1566.1,1566.0,11.58195]
[1744386758390,0.00956693,1566.2,1566.1,1.27767]
[1744386758591,0.00956693,1566.2,1566.1,3.39137]
[1744386758796,0.00956693,1566.2,1566.1,8.39137]
[1744386760389,6.93e-06,1566.2,1566.1,8.39137]
[1744386761900,6.93e-06,1566.2,1566.1,3.39137]
[1744386762702,6.93e-06,1566.2,1566.1,8.39137]
[1744386763996,6.93e-06,1566.2,1566.1,3.39137]
[1744386764197,6.93e-06,1566.2,1566.1,2.1137]
[1744386764497,1.27775,1566.0,1565.9,6.61281]
[1744386764691,1.27788,1565.9,1565.7,24.62824898]
[1744386764900,2.1756,1565.9,1565.8,1.27791]
[1744386765210,2.1756,1565.9,1565.8,3.35541]
[1744386765397,2.1756,1565.9,1565.7,24.62824898]
[1744386765595,3.45346,1565.9,1565.8,1.27791]
[1744386766295,1.8843,1566.0,1565.9,1.27783]
[1744386766495,3.45327,1566.1,1566.0,1.27775]
[1744386766696,4.0599,1566.1,1565.9,3.35526]
[1744386766895,2.061,1566.0,1565.9,3.35526]
[1744386769606,1.88090693,1566.2,1566.1,1.27767]
[1744386770008,4.03330693,1566.2,1566.1,1.27767]
[1744386770708,6.93e-06,1566.2,1566.1,1.27767]
[1744386770908,6.93e-06,1566.2,1566.1,5.32887]
[1744386771500,6.93e-06,1566.2,1566.1,10.32887]
[1744386772501,6.93e-06,1566.2,1566.1,51.12887]
[1744386773408,6.93e-06,1566.2,1566.1,51.76807]
[1744386775205,2.1524,1566.6,1566.5,1.27734]
[1744386777016,2.1524,1566.6,1566.5,3.45114]
[1744386777312,2.1524,1566.6,1566.5,1.27734]
[1744386778915,2.1524,1566.6,1566.5,3.45114]
[1744386780417,3.58086693,1566.7,1566.6,1.27726]
[1744386780713,3.58086693,1566.7,1566.6,3.31966]
[1744386781013,8.58086693,1566.7,1566.6,1.27726]
[1744386781212,9.85804693,1566.7,1566.6,1.27726]
[1744386781513,10.67096693,1566.7,1566.6,1.27726]
[1744386781704,6.94814693,1566.7,1566.6,1.27726]
[1744386782003,5.67096693,1566.7,1566.6,1.27726]
[1744386785717,6.94814693,1566.7,1566.6,1.27726]
[1744386786118,1.27726,1566.6,1566.5,1.27726]
[1744386786314,3.34986,1566.6,1566.5,1.27726]
[1744386786915,2.0726,1566.6,1566.5,1.27726]
[1744386787121,3.34986,1566.6,1566.5,1.27726]
[1744386787621,1.27734,1566.5,1566.4,5.33056693]
[1744386787919,2.0726,1566.5,1566.4,6.60798693]
[1744386788611,3.34994,1566.5,1566.4,0.00956693]
[1744386789209,2.0726,1566.5,1566.4,1.28698693]
[1744386790911,3.34994,1566.5,1566.4,0.00956693]
[1744386791413,1.27754,1566.3,1566.2,1.27752]
[1744386791811,6.66668,1566.4,1566.3,1.2775]
[1744386792310,11.66668,1566.4,1566.3,1.2775]
[1744386792726,1.2775,1566.3,1566.2,0.00956693]
[1744386792913,1.27763,1566.2,1566.1,1.27762]
[1744386793415,2.1814,1566.3,1565.9,40.8]
[1744386793620,3.45911,1566.1,1566.0,1.2777]
[1744386793815,2.1814,1566.1,1565.6,3.19503]
[1744386794022,4.48569,1565.9,1565.8,1.27789]
[1744386794211,2.1814,1566.0,1565.9,1.27783]
[1744386794212,3.45921,1566.0,1565.9,1.27783]
[1744386794417,2.1814,1566.0,1565.9,1.27783]
[1744386794817,1.27786,1565.9,1565.8,1.27786]
[1744386795019,4.48566,1565.9,1565.8,1.27786]
[1744386795237,1.27791,1565.8,1565.7,0.04312693]
[1744386795523,3.35321,1565.8,1565.7,0.04312693]
[1744386795717,8.35321,1565.8,1565.7,0.04312693]
[1744386796019,7.0753,1565.8,1565.7,1.32111693]
[1744386796220,5.20321,1565.8,1565.7,1.32111693]
[1744386796619,3.9253,1565.8,1565.7,1.32111693]
[1744386796920,5.20321,1565.8,1565.7,1.32111693]
[1744386797121,5.20321,1565.8,1565.7,0.04312693]
[1744386797723,5.20321,1565.8,1565.7,1.32111693]
[1744386798221,3.9253,1565.8,1565.7,1.32111693]
[1744386798623,5.20321,1565.8,1565.7,1.32111693]
[1744386799226,3.9253,1565.8,1565.7,1.32111693]
[1744386800816,5.20321,1565.8,1565.7,1.32111693]
[1744386801425,3.9253,1565.8,1565.7,1.32111693]
[1744386803027,0.00956693,1566.1,1566.0,1.27775]
[1744386803217,3.88406693,1566.1,1566.0,1.27775]
[1744386803528,5.16173693,1566.1,1566.0,1.27775]
[1744386803727,1.27791,1565.8,1565.7,0.04312693]
[1744386803933,4.48567,1565.9,1565.7,1.32104693]
[1744386804120,3.9764,1565.8,1565.7,1.32104693]
[1744386805030,1.8464,1566.0,1565.9,1.27783]
[1744386805229,5.8228,1566.0,1565.9,1.27783]
[1744386805528,7.10055,1566.0,1565.9,1.27783]
[1744386805926,5.8228,1566.0,1565.9,1.27783]
[1744386807730,7.10055,1566.0,1565.9,1.27783]
[1744386807931,1.27783,1565.9,1565.8,1.27786]
[1744386808132,2.0403,1565.9,1565.8,1.27786]
[1744386808937,3.31813,1565.9,1565.8,1.27786]
[1744386809134,3.31813,1565.9,1565.7,0.04312693]
[1744386809337,1.27783,1565.9,1565.8,1.27791]
[1744386809530,3.6441,1566.0,1565.9,1.27783]
[1744386809531,4.92191,1566.0,1565.9,1.27783]
[1744386809928,3.6441,1566.0,1565.9,1.27783]
[1744386811543,4.92185,1566.0,1565.9,1.27783]
[1744386811833,3.6441,1566.0,1565.9,1.27783]
[1744386812234,3.6441,1566.0,1565.9,3.48093]
[1744386813533,3.6441,1566.0,1565.9,1.27783]
[1744386813534,4.92185,1566.0,1565.9,1.27783]
[1744386813735,3.6441,1566.0,1565.9,1.27783]
[1744386814439,3.6441,1566.0,1565.9,3.42213]
[1744386815339,4.92185,1566.0,1565.9,3.42213]
[1744386815539,3.6441,1566.0,1565.9,3.42213]
[1744386815727,1.8464,1566.0,1565.9,3.42213]
[1744386816037,1.8464,1566.0,1565.9,6.62993]
[1744386816234,20.83675,1566.5,1566.4,1.27742]
[1744386816235,3.2078,1566.5,1566.4,1.27742]
[1744386816440,9.12453,1567.0,1566.7,1.27718]
[1744386816441,8.03509,1566.8,1566.7,1.27718]
[1744386816739,20.45779509,1566.8,1566.6,1.27722]
[1744386816938,1.27726,1566.6,1566.5,1.27729]
[1744386817835,1.27726,1566.6,1566.4,1.28691693]
[1744386818030,1.8313,1566.5,1566.4,1.28691693]
[1744386818639,3.10864,1566.5,1566.4,1.28691693]
[1744386818939,1.8313,1566.5,1566.4,1.28691693]
[1744386820338,0.00956693,1566.7,1566.6,1.27726]
[1744386820635,1.27726,1566.6,1566.5,1.27727]
[1744386820824,1.75756693,1566.7,1566.6,1.27726]
[1744386821340,3.74866693,1566.7,1566.6,1.27726]
[1744386823234,5.02584693,1566.7,1566.6,1.27726]
[1744386824040,3.74866693,1566.7,1566.6,1.27726]
[1744386825140,3.74866693,1566.7,1566.6,3.41616]
[1744386825533,3.74866693,1566.7,1566.6,1.27726]
[1744386825733,5.02584693,1566.7,1566.6,1.27726]
[1744386826043,3.74866693,1566.7,1566.6,1.27726]
[1744386826544,0.00956693,1566.7,1566.6,1.27726]
[1744386826849,0.00956693,1566.7,1566.6,3.41616]
[1744386827237,0.00956693,1566.7,1566.6,44.21616]
[1744386828137,0.00956693,1566.7,1566.6,47.42396]
[1744386828336,0.00956693,1566.7,1566.6,49.30736]
[1744386828840,0.00956693,1566.7,1566.6,47.42396]
[1744386829041,1.77366693,1566.7,1566.6,4.48506]
[1744386829246,1.77366693,1566.7,1566.6,1.27726]
[1744386829443,3.75626693,1566.7,1566.6,1.27726]
[1744386829947,5.03344693,1566.7,1566.5,6.58626]
[1744386830147,1.9826,1566.6,1566.5,6.58626]
[1744386831544,4.92626,1566.6,1566.5,6.58626]
[1744386831735,1.27734,1566.5,1566.4,0.00956693]
[1744386832046,3.37774,1566.5,1566.4,0.00956693]
[1744386832753,1.27758,1566.2,1566.1,1.27762]
[1744386832944,1.27758,1566.3,1566.2,1.27758]
[1744386833446,2.98938,1566.3,1566.2,1.27758]
[1744386834046,1.7118,1566.3,1566.2,1.27758]
[1744386834451,3.6408,1566.3,1566.2,1.27758]
[1744386835150,3.6408,1566.3,1566.2,3.27078]
[1744386835341,1.7118,1566.3,1566.2,3.27078]
[1744386835647,1.929,1566.5,1566.4,1.27742]
[1744386836146,3.5792,1566.5,1566.4,1.27742]
[1744386836850,1.6316,1566.6,1566.5,1.27734]
[1744386837050,3.6876,1566.6,1566.5,1.27734]
[1744386837552,4.96486,1566.6,1566.5,1.27734]
[1744386837749,3.6876,1566.6,1566.5,1.27734]
[1744386840051,1.6316,1566.6,1566.5,1.27734]
[1744386840753,3.73056693,1566.7,1566.6,1.27726]
[1744386840954,3.73056693,1566.7,1566.6,3.25766]
[1744386841451,1.27726,1566.6,1566.5,4.48507]
[1744386841653,1.9507,1566.6,1566.5,1.27727]
[1744386843859,3.22796,1566.6,1566.5,1.27727]
[1744386844054,1.9507,1566.6,1566.5,1.27727]
[1744386844359,1.27734,1566.5,1566.4,1.27735]
[1744386844545,3.06504,1566.5,1566.4,1.27735]
[1744386844745,3.06511,1566.5,1566.4,1.27742]
[1744386845153,5.14071,1566.5,1566.4,1.27742]
[1744386845459,3.8633,1566.5,1566.3,5.296]
[1744386845757,1.2775,1566.3,1566.1,0.00956693]
[1744386846054,1.27753,1566.3,1566.2,1.27754]
[1744386846258,1.27758,1566.2,1566.1,1.28718693]
[1744386846655,1.27758,1566.2,1566.1,0.00956693]
[1744386847159,1.27758,1566.2,1566.1,1.28715693]
[1744386847457,1.27775,1566.0,1565.9,0.04102]
[1744386847858,4.48555,1566.0,1565.9,0.04102]
[1744386848059,9.48555,1566.0,1565.9,0.04102]
[1744386848556,1.27783,1565.9,1565.8,9.88057077]
[1744386848752,1.27783,1565.9,1565.8,4.47347077]
[1744386848954,6.27783,1565.9,1565.8,4.47347077]
[1744386849258,11.57483,1565.9,1565.8,1.76997077]
[1744386850358,1.27791,1565.8,1565.7,14.75724514]
[1744386850550,4.48571,1565.8,1565.7,14.75724514]
[1744386850752,9.48571,1565.8,1565.7,14.75724514]
[1744386850946,8.2078,1565.8,1565.5,1.27812]
[1744386851159,3.2078,1565.6,1565.5,1.27812]
[1744386851658,1.27816,1565.5,1565.4,3.35427]
[1744386854460,6.5823,1565.6,1565.5,1.27816]
[1744386854961,1.6236,1565.6,1565.5,1.27816]
[1744386855360,0.00956693,1565.7,1565.6,1.27807]
[1744386855750,0.00956693,1565.7,1565.6,9.48587]
[1744386855956,6.93e-06,1565.7,1565.6,11.18717]
[1744386856653,6.93e-06,1565.7,1565.6,51.98717]
[1744386861671,3.19987,1566.1,1566.0,1.27775]
[1744386862072,1.9222,1566.1,1566.0,1.27775]
[1744386862870,3.19987,1566.1,1566.0,1.27775]
[1744386863775,1.9222,1566.1,1566.0,1.27775]
[1744386864076,0.00956693,1566.2,1566.1,1.27767]
[1744386864462,0.00956693,1566.2,1566.1,3.12177]
[1744386865466,2.01546693,1566.2,1566.1,3.12177]
[1744386866374,2.01546693,1566.2,1566.1,1.27767]
[1744386866576,10.20945693,1566.2,1565.9,3.12187]
[1744386866777,1.5646,1566.1,1565.8,6.8841]
[1744386867076,1.27783,1565.9,1565.8,1.27787]
[1744386867279,4.86656,1566.0,1565.6,3.6119]
[1744386867483,2.88037,1565.8,1565.7,1.27799]
[1744386867976,1.27807,1565.6,1565.5,6.57263003]
[1744386868176,1.27807,1565.6,1565.5,0.00956003]
[1744386868383,6.27807,1565.6,1565.5,0.00956003]
[1744386868581,9.68747,1565.6,1565.5,0.00956003]
[1744386868778,9.68747,1565.6,1565.5,1.28772003]
[1744386870373,4.68747,1565.6,1565.5,1.28772003]
[1744386870983,3.4094,1565.6,1565.5,1.28772003]
[1744386871778,1.8316,1565.6,1565.5,1.28772003]
[1744386872182,1.8316,1565.6,1565.5,3.19292003]
[1744386873379,3.10967,1565.6,1565.5,3.19292003]
[1744386873682,3.10967,1565.6,1565.5,1.28772003]
[1744386874080,1.721,1565.7,1565.6,1.27807]
[1744386874383,1.8482,1565.8,1565.7,1.27799]
[1744386874576,3.12611,1565.8,1565.7,1.27799]
[1744386874981,1.6381,1565.9,1565.8,1.27791]
[1744386875184,1.27791,1565.8,1565.7,2.96023]
[1744386875381,3.12611,1565.8,1565.7,1.27793]
[1744386875780,1.27799,1565.7,1565.6,3.18921]
[1744386875984,1.8482,1565.7,1565.6,3.18921]
[1744386876381,4.85647,1566.0,1565.6,1.9112]
[1744386876586,4.8292,1565.9,1565.8,1.27791]
[1744386876983,1.27791,1565.8,1565.7,3.16454]
[1744386877184,1.27807,1565.6,1565.5,1.28766003]
[1744386877588,1.27807,1565.6,1565.5,0.00956003]
[1744386877979,2.91407,1565.6,1565.5,0.00956003]
[1744386878986,2.91407,1565.6,1565.5,1.28772003]
[1744386879188,4.89657,1565.6,1565.5,0.00956003]
[1744386880489,4.89657,1565.6,1565.5,1.28772003]
[1744386882885,4.89657,1565.6,1565.5,0.00956003]
[1744386883087,4.89657,1565.6,1565.5,1.28772003]
[1744386883890,4.89657,1565.6,1565.5,0.00956003]
[1744386884590,4.89657,1565.6,1565.5,1.28772003]
[1744386884791,4.89657,1565.6,1565.5,0.00956003]
[1744386885291,9.89657,1565.6,1565.5,0.00956003]
[1744386885694,4.89657,1565.6,1565.5,0.00956003]
[1744386888693,4.89657,1565.6,1565.5,1.28772003]
[1744386890097,4.89657,1565.6,1565.5,3.25172003]
[1744386890288,1.27805,1565.7,1565.6,1.27807]
[1744386890489,3.29588,1565.8,1565.7,1.27799]
[1744386890687,2.0179,1565.8,1565.7,1.27799]
[1744386890994,13.21060808,1566.1,1565.6,5.1718]
[1744386891194,3.29573,1566.0,1565.9,1.27779]
[1744386892388,10.00280808,1566.1,1566.0,1.27775]
[1744386892588,11.28047808,1566.1,1566.0,3.27895]
[1744386892790,10.01237501,1566.2,1566.1,1.27767]
[1744386892992,13.30920501,1566.2,1566.1,3.27887]
[1744386893293,10.01237501,1566.2,1566.1,3.27887]
[1744386895492,10.01237501,1566.2,1566.1,4.88807]
[1744386895789,11.28995501,1566.2,1566.1,4.88807]
[1744386895998,10.01237501,1566.2,1566.1,4.88807]
[1744386896698,10.01237501,1566.2,1566.1,9.88807]
[1744386896894,10.01237501,1566.2,1566.1,15.16207]
[1744386897196,0.00956693,1566.2,1566.1,15.16207]
[1744386898389,0.00956693,1566.2,1566.1,10.16207]
[1744386898596,1.28714693,1566.2,1566.1,10.16207]
[1744386898796,0.00956693,1566.2,1566.1,4.88807]
[1744386898999,1.28714693,1566.2,1566.1,3.27887]
[1744386899192,3.25694693,1566.2,1566.1,3.27887]
[1744386899598,1.27767,1566.1,1566.0,4.48551]
[1744386899898,3.24752,1566.1,1566.0,1.27775]
[1744386900103,1.27778,1566.0,1565.9,3.16399]
[1744386900291,3.24758,1566.0,1565.9,3.16399]
[1744386900998,1.74806693,1566.2,1566.1,1.27767]
[1744386901302,0.00956693,1566.2,1566.1,1.27767]
[1744386901495,0.00956693,1566.2,1566.1,2.97017]
[1744386902902,1.27767,1566.1,1566.0,1.27768]
[1744386903109,4.7277,1566.1,1566.0,1.27775]
[1744386903403,3.7083,1566.1,1566.0,1.27775]
[1744386903595,0.00956693,1566.2,1566.1,1.27767]
[1744386904202,1.28714693,1566.2,1566.1,1.27767]
[1744386904405,0.00956693,1566.2,1566.1,3.12337]
[1744386906804,0.00956693,1566.2,1566.1,16.60417]
[1744386907604,6.93e-06,1566.2,1566.1,16.60417]
[1744386908204,6.93e-06,1566.2,1566.1,57.40417]
[1744386909015,6.93e-06,1566.2,1566.1,52.40417]
[1744386909510,6.93e-06,1566.2,1566.1,57.40417]
[1744386910409,6.93e-06,1566.2,1566.1,58.04337]
[1744386910598,6.93e-06,1566.2,1566.1,58.53106114]
[1744386913205,6.93e-06,1566.2,1566.1,57.40417]
[1744386913411,6.93e-06,1566.2,1566.1,52.40417]
[1744386914813,6.93e-06,1566.2,1566.1,57.40417]
[1744386915211,6.93e-06,1566.2,1566.1,59.06627]
[1744386915709,2.0221,1566.7,1566.6,1.27726]
[1744386917309,1.27726,1566.6,1566.5,1.28686693]
[1744386917513,2.96226,1566.6,1566.5,1.28690693]
[1744386917814,3.5791,1566.6,1566.5,1.28690693]
[1744386918213,1.8941,1566.6,1566.5,1.28690693]
[1744386918408,7.60346693,1566.8,1566.7,1.27718]
[1744386918611,3.56556693,1566.8,1566.7,1.27718]
[1744386918816,0.00956693,1566.8,1566.7,1.27718]
[1744386919115,0.00956693,1566.8,1566.7,4.97548]
[1744386919705,6.93e-06,1566.8,1566.7,4.97548]
[1744386920817,6.93e-06,1566.8,1566.7,1.27718]
[1744386921018,1.60720693,1566.8,1566.7,1.27718]
[1744386921214,8.49660693,1566.8,1566.7,1.27718]
[1744386921716,1.2772,1566.7,1566.6,1.27721]
[1744386921917,3.1666,1566.7,1566.6,1.27721]
[1744386922111,8.1666,1566.7,1566.6,1.27721]
[1744386922607,1.27726,1566.6,1566.5,1.28688693]
[1744386922918,4.82176,1566.6,1566.5,1.28688693]
[1744386923621,3.5445,1566.6,1566.5,1.28688693]
[1744386925521,8.5445,1566.6,1566.5,1.28688693]
[1744386925722,9.82176,1566.6,1566.5,1.28688693]
[1744386926422,3.5445,1566.6,1566.5,1.28688693]
[1744386927319,9.82176,1566.6,1566.5,0.00956693]
[1744386927717,13.02956,1566.6,1566.5,0.00956693]
[1744386928523,13.02956,1566.6,1566.5,1.28690693]
[1744386928724,13.02956,1566.6,1566.5,0.00956693]
[1744386929219,13.02956,1566.6,1566.5,1.28690693]
[1744386929720,13.02956,1566.6,1566.5,0.00956693]
[1744386930217,8.02956,1566.6,1566.5,0.00956693]
[1744386930420,13.02956,1566.6,1566.5,0.00956693]
[1744386931424,13.02956,1566.6,1566.5,1.28690693]
[1744386931722,8.02956,1566.6,1566.5,0.00956693]
[1744386931918,8.02956,1566.6,1566.5,1.28690693]
[1744386932121,4.82176,1566.6,1566.5,1.28690693]
[1744386933621,4.82176,1566.6,1566.5,0.00956693]
[1744386934127,3.5445,1566.6,1566.5,1.28690693]
[1744386936231,4.82176,1566.6,1566.5,1.28690693]
[1744386936626,4.82176,1566.6,1566.5,0.00956693]
[1744386936834,4.82176,1566.6,1566.5,1.28690693]
[1744386938523,4.82176,1566.6,1566.5,0.00956693]
[1744386938722,4.82176,1566.6,1566.5,1.28690693]
[1744386943435,3.5445,1566.6,1566.5,1.28690693]
[1744386943626,4.82176,1566.6,1566.5,1.28690693]
[1744386944734,4.82176,1566.6,1566.5,3.16840693]
[1744386946636,8.02956,1566.6,1566.5,0.00956693]
[1744386946831,13.02956,1566.6,1566.5,0.00956693]
[1744386947736,18.28856,1566.6,1566.5,0.00956693]
[1744386948832,13.28856,1566.6,1566.5,1.28690693]
[1744386949036,13.28856,1566.6,1566.5,0.00956693]
[1744386949948,13.28856,1566.6,1566.5,1.28690693]
[1744386950154,13.28856,1566.6,1566.5,0.00956693]
[1744386950852,13.28856,1566.6,1566.5,1.28690693]
[1744386951949,13.28856,1566.6,1566.5,0.00956693]
[1744386952143,1.2775,1566.3,1566.2,1.27754]
[1744386952446,1.27758,1566.2,1566.1,3.03382]
[1744386952647,1.27758,1566.2,1566.0,6.38639]
[1744386952648,1.27767,1566.1,1566.0,1.2777]
[1744386952836,1.27775,1566.0,1565.9,3.00729]
[1744386953041,3.07605,1566.0,1565.9,1.27779]
[1744386953649,3.07605,1566.0,1565.9,3.00729]
[1744386954751,3.07605,1566.0,1565.9,1.27779]
[1744386955444,1.27783,1565.9,1565.8,19.31790207]
[1744386955643,1.7983,1565.9,1565.8,19.31790207]
[1744386955847,1.28738693,1566.0,1565.9,1.27783]
[1744386956049,3.01388693,1566.0,1565.9,3.10533]
[1744386956254,1.27783,1565.9,1565.8,2.83111693]
[1744386956558,3.00433,1565.9,1565.8,0.00956693]
[1744386957750,8.00433,1565.9,1565.8,1e-08]
[1744386959844,3.00433,1565.9,1565.8,1e-08]
[1744386960449,3.00433,1565.9,1565.8,1.27791001]
[1744386961049,3.00433,1565.9,1565.8,1e-08]
[1744386961350,3.00433,1565.9,1565.8,1.27791001]
[1744386963253,3.00433,1565.9,1565.8,1e-08]
[1744386963944,8.00433,1565.9,1565.8,1e-08]